bitfinex/quotes_SOLUSD_20250210
["timestamp","ask_amount","ask_price","bid_price","bid_amount"]
[1739224166781,11.6342934,200.85,200.76,0.063]
[1739224166782,6.6554934,200.83,200.76,6.7184934]
[1739224166986,6.6554934,200.81,200.76,0.063]
[1739224167183,6.6554934,200.8,200.76,0.063]
[1739224167368,6.6554934,200.79,200.76,0.063]
[1739224168888,4.9805,200.78,200.76,0.063]
[1739224171165,6.6554934,200.77,200.76,0.063]
[1739224172287,23.68734193,200.77,200.76,0.063]
[1739224173882,28.66814193,200.77,200.76,0.063]
[1739224178188,29.66814193,200.77,200.73,0.063]
[1739224178489,40.06734193,200.74,200.73,0.063]
[1739224180067,45.04884193,200.74,200.73,0.063]
[1739224180372,46.04884193,200.74,200.73,0.063]
[1739224180773,46.04884193,200.74,200.73,0.0001]
[1739224181991,13.41184853,200.73,200.72,0.0001]
[1739224182169,20.06734193,200.73,200.72,0.0001]
[1739224182980,51.59884193,200.73,200.72,0.0001]
[1739224183990,63.25184853,200.7,200.64,3.67]
[1739224184186,75.04284193,200.73,200.47,15.30761006]
[1739224184187,1.0,200.59,200.47,15.30761006]
[1739224184396,6.6554934,200.56,200.48,6.6554934]
[1739224184595,10.4954934,200.58,200.5,6.9054934]
[1739224184897,3.84,200.58,200.52,6.6554934]
[1739224185097,3.84,200.58,200.55,6.6554934]
[1739224186905,3.84,200.58,200.53,6.6554934]
[1739224187208,7.65380503,200.57,200.53,6.6554934]
[1739224187504,1.0,200.56,200.53,6.6554934]
[1739224189478,5.5879006,200.58,200.53,6.6554934]
[1739224190098,1.0,200.56,200.51,6.6554934]
[1739224190296,1.7479006,200.56,200.51,6.6554934]
[1739224190699,1.0,200.56,200.52,13.1176934]
[1739224190903,1.0,200.56,200.53,6.6554934]
[1739224192308,1.0,200.56,200.54,6.6554934]
[1739224192810,1.0,200.56,200.55,6.6554934]
[1739224193196,1.0,200.56,200.54,6.6554934]
[1739224193391,1.0,200.56,200.55,6.6554934]
[1739224196096,1.0,200.56,200.55,11.6416934]
[1739224196985,0.03,200.58,200.55,11.6416934]
[1739224197324,0.03,200.58,200.57,6.6554934]
[1739224197696,1.0,200.64,200.57,20.81498842]
[1739224197894,62.23044025,200.66,200.62,6.6554934]
[1739224198133,62.23044025,200.66,200.64,6.6554934]
[1739224198426,61.23044025,200.66,200.64,6.6554934]
[1739224199128,1.0,200.64,200.63,4.9842]
[1739224200632,1.0,200.64,200.62,6.6554934]
[1739224200834,1.0,200.64,200.59,6.6554934]
[1739224201036,1.0,200.61,200.57,6.6554934]
[1739224201205,0.7479006,200.63,200.56,11.6414934]
[1739224201206,1.0,200.59,200.56,11.6414934]
[1739224202432,1.0,200.59,200.57,6.6554934]
[1739224203516,1.0,200.59,200.56,6.6554934]
[1739224203717,1.0,200.59,200.55,6.6554934]
[1739224204530,0.7479006,200.61,200.53,11.6421934]
[1739224204531,1.0,200.56,200.53,11.6421934]
[1739224207110,1.0,200.56,200.51,11.6424934]
[1739224207711,1.0,200.53,200.52,6.6554934]
[1739224207920,1.0,200.55,200.52,6.6554934]
[1739224208130,1.0,200.55,200.53,6.6554934]
[1739224209437,1.0,200.53,200.51,6.6554934]
[1739224209929,1.0,200.55,200.52,6.6554934]
[1739224210427,1.0,200.55,200.52,6.1554934]
[1739224213648,1.0,200.52,200.5,6.6554934]
[1739224214928,1.0,200.52,200.49,6.6554934]
[1739224217638,1.0,200.48,200.47,0.063]
[1739224217813,1.7479006,200.48,200.47,0.063]
[1739224218246,1.7479006,200.48,200.36,12.4774]
[1739224218247,1.0,200.43,200.37,6.6554934]
[1739224218412,1.0,200.43,200.37,11.6461934]
[1739224218744,1.0,200.45,200.41,6.6554934]
[1739224218945,1.0,200.43,200.34,1.74836019]
[1739224219151,1.0,200.43,200.4,16.6554934]
[1739224219621,1.0,200.45,200.4,16.6554934]
[1739224219939,1.0,200.41,200.4,10.0]
[1739224220131,1.7479006,200.41,200.4,10.0]
[1739224221311,18.99974913,200.41,200.4,10.0]
[1739224221513,12.243394,200.41,200.4,10.0]
[1739224221723,5.5879006,200.41,200.4,10.0]
[1739224221928,4.84,200.41,200.4,10.0]
[1739224222152,24.84,200.41,200.4,10.0]
[1739224222638,25.5879006,200.41,200.4,10.0]
[1739224223013,4.84,200.41,200.4,10.0]
[1739224223221,1.0,200.41,200.4,16.6554934]
[1739224223426,1.0,200.41,200.4,10.0]
[1739224226432,1.0,200.41,200.4,10.063]
[1739224233649,21.0,200.41,200.4,10.063]
[1739224238340,21.03,200.41,200.4,10.063]
[1739224238549,26.0197,200.41,200.4,10.063]
[1739224239935,37.24085151,200.41,200.4,10.063]
[1739224240842,26.7676006,200.41,200.4,10.063]
[1739224241445,40.17944913,200.41,200.4,10.063]
[1739224248645,46.8835032,200.41,200.4,10.063]
[1739224255178,48.4081032,200.41,200.4,8.3964]
[1739224255465,1.0,200.34,200.31,0.15]
[1739224255680,0.7479006,200.33,200.31,0.15]
[1739224256964,5.5279006,200.34,200.31,6.85405407]
[1739224257162,4.78,200.34,200.31,6.85405407]
[1739224261679,0.7479006,200.36,200.33,6.70405407]
[1739224261680,1.0,200.36,200.33,6.70405407]
[1739224261863,1.0,200.36,200.35,6.70405407]
[1739224262271,0.7479006,200.39,200.35,6.70405407]
[1739224262272,1.0,200.39,200.35,6.70405407]
[1739224262576,1.0,200.39,200.38,6.70405407]
[1739224263070,1.0,200.39,200.37,6.70405407]
[1739224263586,1.0,200.39,200.31,39.44681628]
[1739224263587,1.0,200.35,200.34,6.70405407]
[1739224263961,1.0,200.35,200.32,6.70405407]
[1739224264257,1.0,200.33,200.31,6.91705407]
[1739224264761,1.0,200.38,200.32,6.70405407]
[1739224264982,1.0,200.38,200.36,6.70405407]
[1739224265551,1.0,200.38,200.37,6.70405407]
[1739224265858,1.0,200.4,200.37,6.70405407]
[1739224266158,1.0,200.4,200.39,6.70405407]
[1739224266489,0.03,200.41,200.39,11.69425407]
[1739224266772,0.03,200.41,200.4,33.52027035]
[1739224266963,0.03,200.41,200.4,6.70405407]
[1739224267751,0.03,200.41,200.4,10.46531816]
[1739224268588,11.44874489,200.48,200.4,25.92063632]
[1739224268878,11.44874489,200.48,200.47,10.46531816]
[1739224269065,12.44874489,200.48,200.47,10.46531816]
[1739224269395,11.44874489,200.48,200.47,10.46531816]
[1739224273283,12.44874489,200.48,200.47,10.46531816]
[1739224274189,16.43674489,200.48,200.46,10.46531816]
[1739224274382,1.0,200.47,200.45,10.46531816]
[1739224274989,1.0,200.47,200.46,10.46531816]
[1739224277578,11.47874489,200.48,200.46,10.46531816]
[1739224277775,11.47874489,200.48,200.47,10.46531816]
[1739224279884,11.47874489,200.48,200.47,15.45351816]
[1739224280190,0.03,200.48,200.47,21.57951816]
[1739224287094,0.03,200.48,200.47,23.16801816]
[1739224289605,0.03,200.48,200.47,19.39664935]
[1739224295806,0.03,200.48,200.47,6.69394935]
[1739224296585,0.03,200.48,200.47,11.68214935]
[1739224298993,0.03,200.52,200.48,1.0]
[1739224299316,0.03,200.52,200.51,6.69394935]
[1739224300697,0.03,200.52,200.51,4.69394935]
[1739224301108,0.03,200.52,200.51,9.68114935]
[1739224304893,0.03,200.52,200.51,4.69394935]
[1739224305099,1.0,200.51,200.48,6.69394935]
[1739224305817,1.0,200.51,200.49,6.69394935]
[1739224307825,1.0,200.51,200.5,6.69394935]
[1739224308133,0.03,200.52,200.5,6.69394935]
[1739224308296,0.03,200.52,200.51,6.69394935]
[1739224309901,1.0,200.51,200.5,6.69394935]
[1739224310715,1.0,200.51,200.49,6.69394935]
[1739224310913,1.0,200.5,200.46,0.74796717]
[1739224311117,1.0,200.45,200.44,6.69394935]
[1739224313096,1.0,200.49,200.44,6.69394935]
[1739224313301,1.0,200.49,200.48,6.69394935]
[1739224313722,1.0,200.49,200.48,10.46282734]
[1739224314126,1.0,200.49,200.47,10.46282734]
[1739224315197,1.0,200.49,200.44,4.9889]
[1739224315423,1.0,200.49,200.46,10.46282734]
[1739224316632,1.0,200.47,200.46,10.46282734]
[1739224316920,1.0,200.47,200.45,10.46282734]
[1739224318119,1.0,200.47,200.46,10.46282734]
[1739224322834,1.0,200.49,200.46,10.46282734]
[1739224323020,1.0,200.49,200.47,10.46282734]
[1739224325839,1.0,200.47,200.46,0.063]
[1739224327424,5.9882,200.47,200.46,0.063]
[1739224329056,1.0,200.47,200.46,0.063]
[1739224330251,6.7361006,200.47,200.46,0.063]
[1739224330642,5.9882,200.47,200.46,0.063]
[1739224331238,1.0,200.47,200.46,0.063]
[1739224338561,5.9882,200.47,200.46,0.063]
[1739224338962,1.0,200.47,200.46,0.063]
[1739224339464,1.7479006,200.47,200.46,0.063]
[1739224339860,1.0,200.47,200.46,0.063]
[1739224340244,1.0,200.47,200.46,6.76217669]
[1739224341158,1.0,200.49,200.46,11.75067669]
[1739224341465,1.0,200.49,200.47,6.69917669]
[1739224345966,1.0,200.47,200.46,0.063]
[1739224352050,1.0,200.47,200.46,6.76217669]
[1739224353058,0.03,200.51,200.46,6.76217669]
[1739224353059,1.0,200.49,200.46,6.76217669]
[1739224353257,1.0,200.49,200.47,6.69917669]
[1739224353867,20.0,200.48,200.46,0.063]
[1739224354059,21.0,200.47,200.46,0.063]
[1739224355554,1.0,200.47,200.46,0.063]
[1739224362383,0.03,200.51,200.46,6.76217669]
[1739224362384,1.0,200.49,200.46,6.76217669]
[1739224362681,1.0,200.49,200.47,6.69917669]
[1739224364381,1.0,200.49,200.46,6.76217669]
[1739224364977,1.03,200.51,200.48,6.69917669]
[1739224365164,1.03,200.51,200.46,5.0514]
[1739224365165,1.03,200.51,200.5,6.69917669]
[1739224365361,0.03,200.51,200.5,6.69917669]
[1739224365556,0.03,200.51,200.5,11.68667669]
[1739224366373,0.03,200.51,200.5,6.69917669]
[1739224366567,1.03,200.51,200.5,6.69917669]
[1739224366974,1.03,200.51,200.49,6.69917669]
[1739224367565,1.03,200.51,200.5,6.69917669]
[1739224367981,0.03,200.51,200.5,6.69917669]
[1739224368983,0.03,200.51,200.5,11.68667669]
[1739224369379,0.03,200.51,200.5,6.69917669]
[1739224370686,0.03,200.51,200.49,11.68687669]
[1739224370982,0.03,200.51,200.5,6.69917669]
[1739224371165,0.03,200.51,200.5,11.68667669]
[1739224373587,0.03,200.51,200.5,11.74967669]
[1739224375192,0.03,200.51,200.5,6.76217669]
[1739224375482,0.03,200.51,200.5,0.063]
[1739224384876,6.72917669,200.51,200.5,0.063]
[1739224386093,11.71637669,200.51,200.5,0.063]
[1739224387569,0.03,200.51,200.5,0.063]
[1739224393978,0.03,200.51,200.5,6.76217669]
[1739224394787,0.03,200.51,200.5,12.49749563]
[1739224394990,0.03,200.51,200.5,14.16019563]
[1739224395992,0.03,200.51,200.5,27.57204416]
[1739224397989,0.03,200.51,200.5,43.37204416]
[1739224401391,1.0,200.61,200.53,13.41184853]
[1739224401586,1.0,200.61,200.57,6.69917669]
[1739224402110,1.0,200.61,200.58,4.9855]
[1739224402793,0.03,200.62,200.58,11.68467669]
[1739224402997,1.0,200.6,200.56,11.68487669]
[1739224403204,1.0,200.6,200.56,4.9857]
[1739224405410,1.0,200.6,200.56,6.69917669]
[1739224405709,1.0,200.6,200.57,6.69917669]
[1739224405889,1.0,200.6,200.58,6.69917669]
[1739224406096,0.03,200.62,200.58,6.69917669]
[1739224406302,0.03,200.62,200.58,7.44675425]
[1739224406826,0.03,200.62,200.59,6.69917669]
[1739224406994,0.03,200.62,200.6,6.69917669]
[1739224407196,0.03,200.62,200.61,6.69917669]
[1739224408215,0.03,200.62,200.61,11.68387669]
[1739224409012,0.03,200.62,200.61,12.431376]
[1739224409218,0.03,200.62,200.61,11.68387669]
[1739224409915,0.03,200.62,200.61,25.09572522]
[1739224410112,0.03,200.62,200.61,25.84311062]
[1739224411022,0.03,200.62,200.61,41.64311062]
[1739224411415,0.03,200.64,200.63,13.41184853]
[1739224411719,0.03,200.64,200.63,36.65830642]
[1739224412300,0.03,200.64,200.63,27.48337669]
[1739224413104,0.03,200.64,200.63,40.89522522]
[1739224413310,0.03,200.64,200.63,27.48337669]
[1739224415832,0.03,200.64,200.63,11.68337669]
[1739224416002,0.03,200.64,200.63,25.09522522]
[1739224418821,0.0001,200.64,200.63,25.09522522]
[1739224419125,0.03,200.69,200.66,33.41184853]
[1739224419319,0.03,200.69,200.68,11.68217669]
[1739224419712,0.03,200.69,200.68,4.983]
[1739224425924,0.03,200.69,200.66,40.85825738]
[1739224426228,0.03,200.69,200.67,4.9833]
[1739224427329,0.03,200.69,200.67,11.68247669]
[1739224429231,0.03,200.69,200.67,4.9833]
[1739224429818,1.0,200.67,200.66,4.9835]
[1739224430015,1.0,200.67,200.65,86.13554501]
[1739224430721,1.0,200.67,200.64,4.984]
[1739224433714,1.0,200.67,200.63,11.68337669]
[1739224436643,1.03,200.69,200.65,6.69917669]
[1739224437838,0.03,200.69,200.67,6.69917669]
[1739224438024,0.03,200.69,200.68,6.69917669]
[1739224440241,1.03,200.69,200.67,11.68247669]
[1739224440825,1.03,200.69,200.67,4.9833]
[1739224443225,0.03,200.69,200.67,4.9833]
[1739224444245,0.03,200.69,200.67,11.68247669]
[1739224445345,0.03,200.69,200.68,6.69917669]
[1739224445549,0.03,200.69,200.68,7.44637168]
[1739224445844,0.03,200.69,200.68,6.69917669]
[1739224447046,0.03,200.69,200.68,11.68217669]
[1739224451650,0.03,200.69,200.68,92.8340217]
[1739224453149,0.03,200.69,200.68,93.58119923]
[1739224455547,0.03,200.69,200.68,86.88202254]
[1739224456049,0.03,200.69,200.68,93.58119923]
[1739224458053,0.03,200.69,200.68,92.8340217]
[1739224458353,0.03,200.69,200.68,86.13484501]
[1739224458953,0.03,200.69,200.68,92.8340217]
[1739224459137,0.03,200.69,200.68,93.5812228]
[1739224460357,0.03,200.69,200.68,92.8340217]
[1739224460852,0.03,200.69,200.68,93.58122056]
[1739224461861,0.03,200.69,200.68,86.13484501]
[1739224462054,0.03,200.69,200.68,81.15184501]
[1739224462236,1.03,200.69,200.64,0.063]
[1739224464172,1.03,200.69,200.64,6.76217669]
[1739224466254,1.03,200.69,200.65,4.9838]
[1739224466461,1.03,200.69,200.65,11.68297669]
[1739224466649,1.03,200.69,200.65,12.43031613]
[1739224466851,0.03,200.69,200.68,6.69917669]
[1739224467541,0.03,200.69,200.68,88.59824446]
[1739224468138,0.03,200.69,200.68,93.58124446]
[1739224468967,0.03,200.69,200.68,107.99309299]
[1739224469167,0.03,200.69,200.68,107.24587023]
[1739224472347,0.03,200.69,200.68,123.04587023]
[1739224477447,0.03,200.69,200.68,96.95184501]
[1739224477648,1.03,200.69,200.68,96.95184501]
[1739224478078,1.0,200.67,200.64,7.83647096]
[1739224478448,1.0,200.67,200.64,5.047]
[1739224478663,1.0,200.67,200.64,0.063]
[1739224479870,1.0,200.67,200.64,5.047]
[1739224480251,1.0,200.67,200.64,11.74617669]
[1739224480573,1.03,200.69,200.64,11.74617669]
[1739224481273,1.03,200.69,200.64,92.8980217]
[1739224481651,1.03,200.69,200.64,93.64533765]
[1739224482460,1.03,200.69,200.65,6.69917669]
[1739224483375,1.0,200.67,200.64,93.64533765]
[1739224486461,1.0,200.67,200.64,86.19884501]
[1739224486657,1.0,200.67,200.64,81.21484501]
[1739224489057,1.0,200.67,200.64,86.19874501]
[1739224495478,6.69917669,200.65,200.64,0.063]
[1739224495673,7.69917669,200.65,200.64,0.063]
[1739224495877,1.0,200.65,200.64,0.063]
[1739224499966,1.0,200.65,200.64,5.047]
[1739224500485,0.03,200.69,200.64,5.047]
[1739224500486,1.0,200.67,200.64,5.047]
[1739224501784,1.0,200.67,200.64,0.063]
[1739224502158,1.0,200.65,200.64,0.063]
[1739224503593,1.0,200.67,200.64,0.063]
[1739224504485,4.43682699,200.7,200.64,0.063]
[1739224504683,6.72917669,200.72,200.64,6.76217669]
[1739224504987,0.03,200.72,200.67,6.69917669]
[1739224505191,0.03,200.72,200.68,6.69917669]
[1739224505399,0.03,200.72,200.69,6.69917669]
[1739224505579,0.03,200.72,200.68,6.69917669]
[1739224506382,0.03,200.72,200.69,11.68197669]
[1739224507584,0.03,200.72,200.69,4.9828]
[1739224508368,0.03,200.72,200.69,11.68197669]
[1739224508787,0.03,200.72,200.71,11.68147669]
[1739224510371,0.03,200.72,200.71,106.24517023]
[1739224510580,0.03,200.73,200.72,13.41184853]
[1739224510787,0.03,200.73,200.72,122.79176819]
[1739224511092,0.03,200.73,200.72,122.04487023]
[1739224511295,0.03,200.83,200.76,1.0]
[1739224511475,0.03,200.83,200.8,6.69917669]
[1739224512291,0.03,200.83,200.79,6.69917669]
[1739224512794,0.03,200.83,200.78,6.69917669]
[1739224513775,0.03,200.83,200.79,4.9803]
[1739224514498,0.03,200.83,200.78,6.69917669]
[1739224514679,0.03,200.83,200.78,11.67967669]
[1739224516891,0.03,200.83,200.78,92.8315217]
[1739224517478,0.03,200.83,200.79,11.67937669]
[1739224518901,0.03,200.83,200.8,6.69917669]
[1739224519196,0.03,200.83,200.81,6.69917669]
[1739224519504,0.03,200.83,200.82,6.69917669]
[1739224519700,0.03,200.83,200.81,87.8510217]
[1739224520396,0.03,200.83,200.81,81.15184501]
[1739224521182,6.69917669,200.82,200.81,81.15184501]
[1739224521782,6.69917669,200.82,200.73,4.9816]
[1739224522011,6.69917669,200.79,200.73,4.9816]
[1739224523284,6.69917669,200.81,200.74,7.44621661]
[1739224523512,6.69917669,200.82,200.75,6.69917669]
[1739224524006,6.69917669,200.82,200.74,0.74703992]
[1739224524007,6.69917669,200.81,200.74,6.69917669]
[1739224524299,6.69917669,200.8,200.73,11.68077669]
[1739224525803,6.69917669,200.8,200.73,108.6326217]
[1739224527784,6.69917669,200.82,200.75,6.69917669]
[1739224528009,6.69917669,200.82,200.74,7.44618224]
[1739224528192,6.69917669,200.82,200.74,6.69917669]
[1739224529200,6.69917669,200.82,200.73,97.01484501]
[1739224529401,0.03,200.83,200.8,6.69917669]
[1739224529803,0.03,200.83,200.82,6.69917669]
[1739224530104,0.03,200.83,200.8,6.69917669]
[1739224530417,0.03,200.83,200.78,6.69917669]
[1739224530703,0.03,200.83,200.77,6.69917669]
[1739224531708,0.03,200.83,200.78,4.9805]
[1739224533505,6.69917669,200.81,200.75,4.9813]
[1739224533712,6.69917669,200.79,200.75,4.9813]
[1739224534398,6.69917669,200.8,200.75,4.9813]
[1739224534599,6.69917669,200.8,200.73,6.76217669]
[1739224534800,6.69917669,200.8,200.74,4.9815]
[1739224536812,6.69917669,200.82,200.75,7.44617924]
[1739224537190,6.72917669,200.83,200.76,6.69917669]
[1739224537405,0.03,200.83,200.77,6.69917669]
[1739224537602,6.72917669,200.83,200.76,6.69917669]
[1739224537811,6.72917669,200.83,200.77,81.15184501]
[1739224538119,6.69917669,200.82,200.77,81.15184501]
[1739224538293,6.69917669,200.81,200.77,81.15184501]
[1739224538613,6.69917669,200.81,200.77,86.13254501]
[1739224540788,0.7779006,200.83,200.76,4.981]
[1739224540789,6.69917669,200.78,200.76,4.981]
[1739224540994,6.69917669,200.77,200.74,4.9815]
[1739224542410,6.69917669,200.78,200.74,4.9815]
[1739224543119,6.69917669,200.77,200.73,86.19654501]
[1739224543997,6.69917669,200.79,200.73,86.19654501]
[1739224546723,6.69917669,200.79,200.73,0.063]
[1739224547325,6.69917669,200.78,200.73,0.063]
[1739224547919,6.69917669,200.77,200.73,0.063]
[1739224548832,6.69917669,200.75,200.73,0.063]
[1739224549346,6.69917669,200.74,200.73,0.063]
[1739224550327,6.69917669,200.75,200.73,0.063]
[1739224552431,6.69917669,200.74,200.73,0.063]
[1739224553911,11.68067669,200.74,200.73,0.063]
[1739224558214,12.42857729,200.74,200.73,0.063]
[1739224560443,25.84042582,200.74,200.73,0.063]
[1739224561733,20.0,200.71,200.64,0.063]
[1739224562043,6.69917669,200.69,200.64,0.063]
[1739224563023,6.69917669,200.7,200.64,0.063]
[1739224563634,6.69917669,200.7,200.64,5.047]
[1739224565647,6.69917669,200.69,200.64,0.063]
[1739224566025,6.69917669,200.68,200.64,0.063]
[1739224566224,6.69917669,200.66,200.64,0.063]
[1739224567844,6.69917669,200.65,200.64,0.063]
[1739224569537,11.68297669,200.65,200.64,0.063]
[1739224570024,6.69917669,200.65,200.64,0.063]
[1739224572044,6.69917669,200.67,200.64,0.063]
[1739224573847,6.69917669,200.65,200.64,0.063]
[1739224582141,11.68297669,200.65,200.64,0.063]
[1739224587562,6.69917669,200.65,200.64,0.063]
[1739224587768,7.44707729,200.65,200.64,0.063]
[1739224588265,12.43087729,200.65,200.64,0.063]
[1739224600983,25.84272582,200.65,200.64,0.063]
[1739224602000,0.7479006,200.66,200.64,0.063]
[1739224602296,89.79917669,200.68,200.64,0.063]
[1739224602753,7.44707729,200.7,200.64,0.063]
[1739224602954,6.69917669,200.7,200.64,6.76217669]
[1739224603475,7.44707729,200.71,200.64,6.76217669]
[1739224603851,6.69917669,200.7,200.64,11.74607669]
[1739224604363,6.69917669,200.69,200.64,5.0469]
[1739224605984,6.69917669,200.69,200.64,0.063]
[1739224606189,6.69917669,200.65,200.64,0.063]
[1739224606680,7.44707729,200.65,200.64,0.063]
[1739224606884,20.85892582,200.65,200.64,0.063]
[1739224608385,25.84272582,200.65,200.64,0.063]
[1739224615804,53.63943258,200.65,200.64,0.063]
[1739224616010,26.84272582,200.65,200.64,0.063]
[1739224618105,20.0,200.62,200.61,0.063]
[1739224618395,31.06707729,200.62,200.61,0.063]
[1739224619486,49.46342582,200.62,200.61,0.063]
[1739224621810,61.92472582,200.62,200.52,7.813]
[1739224622013,6.69917669,200.56,200.52,7.813]
[1739224622413,6.69917669,200.54,200.52,7.813]
[1739224622715,7.44707729,200.53,200.52,0.063]
[1739224623798,12.43377729,200.53,200.52,0.063]
[1739224624196,25.84562582,200.53,200.52,0.063]
[1739224635331,7.44707729,200.53,200.52,0.063]
[1739224637218,7.44707729,200.54,200.52,0.063]
[1739224640844,26.69917669,200.53,200.52,0.063]
[1739224641225,27.44707729,200.53,200.52,0.063]
[1739224644070,32.43377729,200.53,200.52,0.063]
[1739224647686,45.84562582,200.53,200.52,0.063]
[1739224665183,32.43377729,200.53,200.52,0.063]
[1739224669181,45.84562582,200.53,200.52,0.063]
[1739224671686,32.43377729,200.53,200.52,0.063]
[1739224675666,27.44707729,200.53,200.52,0.063]
[1739224675867,32.43377729,200.53,200.52,0.063]
[1739224680989,45.84562582,200.53,200.52,0.063]
[1739224683924,72.64233258,200.53,200.52,0.063]
[1739224684205,73.64233258,200.53,200.52,0.063]
[1739224692390,73.64233258,200.53,200.52,0.0001]
[1739224692581,13.41184853,200.48,200.46,0.063]
[1739224692781,20.85892582,200.47,200.46,0.063]
[1739224693397,103.95892582,200.47,200.46,0.063]
[1739224693680,103.21102522,200.47,200.46,0.063]
[1739224694115,108.19922522,200.47,200.46,0.063]
[1739224699889,108.19922522,200.47,200.46,0.0001]
[1739224704129,88.0882,200.47,200.46,0.0001]
[1739224704308,83.8479006,200.47,200.46,0.0001]
[1739224706436,90.54707729,200.47,200.46,0.0001]
[1739224707202,95.53527729,200.47,200.46,0.0001]
[1739224707822,83.8479006,200.47,200.46,0.0001]
[1739224710116,0.7479006,200.47,200.46,0.0001]
[1739224710429,5.7361006,200.47,200.46,0.0001]
[1739224711414,0.7479006,200.47,200.46,0.0001]
[1739224711725,5.7361006,200.47,200.46,0.0001]
[1739224711915,0.7479006,200.47,200.46,0.0001]
[1739224713935,20.7479006,200.47,200.46,0.0001]
[1739224716732,32.43527729,200.47,200.46,0.0001]
[1739224716931,45.84712582,200.47,200.46,0.0001]
[1739224730642,12.43527729,200.47,200.46,0.0001]
[1739224730828,0.7479006,200.47,200.46,0.0001]
[1739224731775,12.43527729,200.47,200.46,0.0001]
[1739224732129,25.84712582,200.47,200.46,0.0001]
[1739224732740,25.87712582,200.47,200.46,0.0001]
[1739224733758,0.7779006,200.47,200.46,0.0001]
[1739224733918,20.7779006,200.47,200.46,0.0001]
[1739224734814,32.46527729,200.47,200.46,0.0001]
[1739224735019,45.87712582,200.47,200.46,0.0001]
[1739224739531,32.46527729,200.47,200.46,0.0001]
[1739224740833,45.87712582,200.47,200.46,0.0001]
[1739224751146,32.46527729,200.47,200.46,0.0001]
[1739224754567,45.87712582,200.47,200.46,0.0001]
[1739224763272,32.46527729,200.47,200.46,0.0001]
[1739224763458,0.03,200.47,200.46,0.0001]
[1739224766252,0.03,200.47,200.46,12.76167669]
[1739224767266,0.03,200.47,200.46,6.0625]
[1739224771254,0.03,200.47,200.46,17.75017669]
[1739224777073,0.03,200.47,200.46,12.76167669]
[1739224777260,0.03,200.47,200.46,6.0625]
[1739224782200,0.03,200.47,200.46,11.051]
[1739224782369,0.03,200.47,200.46,17.75017669]
[1739224785683,0.03,200.47,200.46,6.0625]
[1739224791907,0.03,200.47,200.46,17.75017669]
[1739224792475,0.03,200.47,200.46,11.051]
[1739224792797,0.03,200.47,200.46,17.75017669]
[1739224798113,0.03,200.47,200.46,11.051]
[1739224799208,0.03,200.47,200.46,4.9886]
[1739224799508,0.03,200.47,200.46,0.0001]
[1739224800708,6.72917669,200.47,200.46,0.0001]
[1739224802903,7.47707729,200.47,200.46,0.0001]
[1739224803211,12.46527729,200.47,200.46,0.0001]
[1739224803514,11.71737669,200.47,200.46,0.0001]
[1739224803812,5.0182,200.47,200.46,0.0001]
[1739224804003,0.03,200.47,200.46,0.0001]
[1739224804719,0.03,200.47,200.46,6.69927669]
[1739224805311,0.03,200.47,200.46,11.68777669]
[1739224805512,0.03,200.47,200.46,6.69927669]
[1739224806395,0.03,200.47,200.46,11.68777669]
[1739224807514,0.03,200.47,200.46,6.69927669]
[1739224808317,0.03,200.47,200.46,11.68777669]
[1739224810121,0.03,200.47,200.46,4.9886]
[1739224810624,0.03,200.47,200.46,11.68777669]
[1739224812128,0.03,200.47,200.46,0.0001]
[1739224812301,6.72917669,200.47,200.46,0.0001]